bitfinex/quotes_ETHUSD_20240703
["timestamp","ask_amount","ask_price","bid_price","bid_amount"]
[1720018545285,1.44226757,3311.1,3310.5,0.25164147]
[1720018545481,1.9655836,3311.0,3310.5,0.25164147]
[1720018545684,1.44226757,3311.0,3310.5,0.25164147]
[1720018545910,1.44226757,3311.0,3310.6,0.26503415]
[1720018546115,0.52330898,3310.9,3310.6,0.26503415]
[1720018546319,1.44226757,3311.0,3310.6,0.26503415]
[1720018546524,0.52330703,3310.9,3310.6,0.26503415]
[1720018546679,1.44226757,3311.2,3310.5,2.3692]
[1720018546880,1.44226757,3311.3,3310.5,2.3692]
[1720018547121,1.44226757,3311.5,3311.1,2.3692]
[1720018547586,1.44226757,3311.6,3311.1,2.3692]
[1720018547781,0.52318865,3311.5,3311.1,2.3692]
[1720018548009,1.44226757,3311.6,3311.1,2.3692]
[1720018548182,1.96518086,3311.5,3311.2,0.50552]
[1720018548382,1.44198531,3311.5,3311.2,0.50552]
[1720018549203,1.44198531,3311.6,3311.2,0.50552]
[1720018549391,1.9651696,3311.5,3311.2,0.50552]
[1720018549589,3.0,3312.4,3311.1,2.3692]
[1720018549590,1.9651696,3311.4,3311.1,2.3692]
[1720018549811,1.44198531,3311.4,3311.1,2.3692]
[1720018550020,1.44198531,3311.5,3311.1,2.3692]
[1720018550330,1.44198531,3311.4,3311.1,2.3692]
[1720018550531,1.44198531,3311.4,3311.1,2.60612]
[1720018551432,0.52320782,3311.3,3311.1,2.60612]
[1720018551603,1.44187653,3311.3,3311.1,2.60612]
[1720018551804,3.0,3311.8,3311.1,2.60612]
[1720018551994,1.44180364,3311.3,3311.1,2.60612]
[1720018552196,1.44180364,3311.4,3311.2,0.260612]
[1720018552440,1.44180364,3311.5,3311.3,2.4931928]
[1720018552626,1.44180364,3311.6,3311.3,2.4931928]
[1720018552799,1.44180364,3311.7,3311.3,2.4931928]
[1720018553008,1.44180364,3311.7,3311.5,2.4328]
[1720018553529,1.44180364,3311.8,3311.5,2.4328]
[1720018553746,1.44180364,3311.9,3311.5,2.4328]
[1720018553949,1.44180364,3312.0,3311.6,0.61547805]
[1720018554239,1.44180364,3311.9,3311.6,0.61547805]
[1720018554449,1.44209996,3311.9,3311.6,0.61547805]
[1720018555426,1.44209996,3312.0,3311.6,0.61547805]
[1720018555630,1.96518958,3311.9,3311.7,0.30482781]
[1720018555851,1.44209996,3312.0,3311.7,0.30482781]
[1720018556155,1.44209996,3312.1,3311.8,2.33488399]
[1720018556378,1.44209996,3312.1,3311.9,0.26397118]
[1720018556681,1.44209996,3312.2,3312.0,2.686]
[1720018556839,1.44209996,3312.2,3312.0,2.7463783]
[1720018557677,1.96569732,3312.1,3312.0,2.7463783]
[1720018558379,0.52304671,3312.1,3312.0,2.7463783]
[1720018558583,0.52304671,3312.1,3312.0,5.61796325]
[1720018558874,1.44265061,3312.3,3312.0,5.61796325]
[1720018559058,1.44265061,3312.4,3312.1,2.3431]
[1720018559379,1.44265061,3312.5,3312.2,0.87355849]
[1720018559672,0.52300767,3312.4,3312.2,0.87355849]
[1720018559858,1.44265061,3312.5,3312.2,0.87355849]
[1720018560063,0.52300791,3312.4,3312.2,0.87355849]
[1720018560261,1.44265061,3312.5,3312.2,0.87355849]
[1720018560434,0.52303387,3312.3,3312.2,0.87355849]
[1720018560633,1.032,3313.2,3312.1,2.3431]
[1720018560835,1.032,3313.2,3311.7,2.4675]
[1720018560836,1.44267126,3312.3,3311.7,2.4675]
[1720018561041,1.44267126,3312.0,3311.7,2.4675]
[1720018561277,1.44267126,3311.8,3311.7,2.4675]
[1720018561445,1.96570079,3311.8,3311.7,2.4675]
[1720018561770,0.52302953,3311.8,3311.7,2.4675]
[1720018561988,1.96570079,3311.8,3311.7,2.4675]
[1720018562144,0.52302953,3311.8,3311.7,2.4675]
[1720018562336,3.0,3312.5,3311.2,2.3016]
[1720018562337,0.52302953,3312.4,3311.2,2.3016]
[1720018562538,1.44220652,3311.7,3311.2,2.3016]
[1720018562769,1.96523605,3311.6,3311.2,2.3016]
[1720018562974,1.44220652,3311.6,3311.2,2.3016]
[1720018563173,7.32,3312.0,3311.2,2.3016]
[1720018563353,1.44210651,3311.6,3311.3,0.23016]
[1720018563552,7.32,3312.0,3311.3,0.23016]
[1720018563774,1.44207767,3311.7,3311.3,0.23016]
[1720018563977,1.44207767,3311.7,3311.4,0.06039132]
[1720018564153,1.44207767,3311.8,3311.3,2.91616]
[1720018564485,1.44207767,3311.8,3311.4,0.839576]
[1720018564693,1.96521143,3311.9,3311.4,0.839576]
[1720018564989,1.44207767,3311.9,3311.4,0.839576]
[1720018565152,1.96518089,3311.9,3311.4,0.839576]
[1720018565354,1.96518089,3311.9,3311.5,0.3755736]
[1720018565998,1.96518089,3311.9,3311.6,2.3634]
[1720018566308,1.44205771,3311.9,3311.6,2.3634]
[1720018566511,1.96517656,3311.9,3311.6,2.3634]
[1720018566809,1.44207032,3311.9,3311.6,2.3634]
[1720018566981,8.76207032,3312.0,3311.7,2.686]
[1720018567166,7.32,3312.0,3311.8,0.06038129]
[1720018567609,1.44207032,3312.2,3311.8,0.06038129]
[1720018567806,3.0,3312.7,3311.9,0.27463813]
[1720018567807,1.44207032,3312.3,3311.9,0.27463813]
[1720018568013,1.44207032,3312.3,3312.0,0.06037775]
[1720018568174,1.44207032,3312.3,3312.1,2.4178]
[1720018568782,1.44207032,3312.3,3312.1,5.1038]
[1720018568983,1.44207032,3312.4,3312.1,5.64164381]
[1720018569401,3.0,3312.7,3312.1,5.64164381]
[1720018569599,0.52302847,3312.6,3312.1,5.64164381]
[1720018569821,1.44264607,3312.4,3312.1,5.64164381]
[1720018570500,1.96570509,3312.3,3311.7,2.2632]
[1720018570669,1.44264607,3312.3,3311.7,2.2632]
[1720018570867,0.52306696,3312.2,3311.7,2.2632]
[1720018571119,1.44264607,3312.3,3311.7,2.2632]
[1720018571278,0.5230685,3312.2,3311.7,2.2632]
[1720018571480,1.44264607,3312.1,3311.7,3.1117055]
[1720018571876,3.0,3312.7,3311.7,3.1117055]
[1720018571877,1.96573626,3312.0,3311.7,3.1117055]
[1720018572072,1.44264607,3312.0,3311.7,3.1117055]
[1720018572590,3.0,3312.7,3311.7,3.1117055]
[1720018572815,1.44251909,3312.0,3311.7,3.1117055]
[1720018572981,1.44251909,3312.0,3311.8,0.57977055]
[1720018573181,1.44251909,3312.1,3311.8,0.57977055]
[1720018573416,3.0,3312.7,3311.7,2.2632]
[1720018573417,1.44251909,3312.2,3311.7,2.2632]
[1720018575480,0.5230503,3312.1,3311.7,2.2632]
[1720018575791,1.44251909,3312.2,3311.7,2.2632]
[1720018576112,0.52305533,3312.1,3311.7,2.2632]
[1720018576315,1.96557442,3312.1,3311.7,2.2632]
[1720018576489,1.96529878,3312.0,3311.7,3.07592]
[1720018576689,1.44222313,3311.9,3311.7,2.2632]
[1720018577087,1.96530129,3311.8,3311.7,2.2632]
[1720018577286,1.44222313,3311.8,3311.7,2.2632]
[1720018578999,1.44279455,3311.8,3311.7,2.2632]
[1720018579398,0.52309597,3311.8,3311.7,2.2632]
[1720018580399,0.52309597,3311.8,3311.7,2.75812]
[1720018582326,0.52309448,3311.8,3311.7,2.75812]
[1720018584215,0.52309448,3311.8,3311.7,2.2632]
[1720018585505,3.0,3312.7,3311.7,2.2632]
[1720018585709,0.5231112,3311.8,3311.7,2.2632]
[1720018585942,3.0,3312.5,3311.7,2.2632]
[1720018586100,2.72017397,3312.4,3311.7,2.2632]
[1720018586300,2.72017397,3312.3,3311.7,2.2632]
[1720018586501,2.72017397,3312.2,3311.7,2.2632]
[1720018586840,2.4653,3312.0,3310.5,2.3176]
[1720018587040,1.44374679,3310.8,3310.5,2.3176]
[1720018587224,1.44374679,3310.8,3310.6,2.686]
[1720018587428,1.96700005,3310.7,3310.6,3.18636]
[1720018587607,1.96700005,3310.7,3310.6,2.686]
[1720018588215,0.52325326,3310.7,3310.6,2.686]
[1720018588634,1.44374679,3310.8,3310.6,2.686]
[1720018588834,7.32,3311.5,3310.6,2.686]
[1720018589039,1.44337946,3310.8,3310.6,2.686]
[1720018589243,7.32,3311.5,3310.7,0.50036]
[1720018589541,1.44337751,3310.8,3310.6,2.686]
[1720018590240,1.44337751,3310.9,3310.6,2.686]
[1720018590442,0.5232552,3310.8,3310.6,2.686]
[1720018590624,1.44337751,3310.9,3310.6,3.18636]
[1720018590836,0.52325517,3310.8,3310.6,3.18636]
[1720018591035,1.44337751,3310.9,3310.6,3.18636]
[1720018592057,1.44338956,3310.9,3310.6,3.18636]
[1720018593173,1.44338956,3310.9,3310.6,2.686]
[1720018593374,2.4794,3311.3,3310.6,2.686]
[1720018593375,1.96666564,3310.8,3310.6,2.686]
[1720018593540,1.44338956,3310.8,3310.6,2.686]
[1720018593885,0.52329677,3310.7,3310.3,0.1177147]
[1720018594030,1.44338956,3310.7,3310.3,0.1177147]
[1720018595142,7.32,3311.1,3310.3,0.1177147]
[1720018595355,1.44370825,3310.7,3310.3,0.1177147]
[1720018596236,1.44370825,3310.8,3310.3,0.1177147]
[1720018596460,0.52331572,3310.7,3310.3,0.1177147]
[1720018596645,1.44370825,3310.8,3310.3,0.1177147]
[1720018596861,0.52331503,3310.7,3310.3,0.1177147]
[1720018597064,1.44370825,3310.8,3310.3,0.1177147]
[1720018598063,1.44368533,3310.8,3310.3,0.1177147]
[1720018598581,8.29994,3311.1,3310.3,0.1177147]
[1720018598789,1.4436832,3310.8,3310.3,0.1177147]
[1720018600163,1.4436832,3310.8,3310.3,0.64241617]
[1720018602103,1.4434399,3310.8,3310.3,0.64241617]
[1720018602411,1.44348597,3310.9,3310.3,0.64241617]
[1720018602579,0.52331215,3310.8,3310.3,0.64241617]
[1720018602762,1.44348597,3310.9,3310.3,0.64241617]
[1720018603078,0.52331222,3310.8,3310.4,0.57717162]
[1720018603408,1.44348597,3310.9,3310.4,0.57717162]
[1720018604158,0.5233035,3310.8,3310.4,0.57717162]
[1720018604376,1.44348597,3310.9,3310.4,0.57717162]
[1720018604576,0.52330457,3310.8,3310.4,0.57717162]
[1720018604776,1.44348597,3310.9,3310.4,0.57717162]
[1720018604997,0.52330319,3310.8,3310.4,0.57717162]
[1720018605300,1.44348597,3310.9,3310.4,0.57717162]
[1720018605301,1.4436437,3310.9,3310.4,0.57717162]
[1720018605608,0.52330316,3310.8,3310.4,0.57717162]
[1720018605811,1.4436437,3310.9,3310.4,0.57717162]
[1720018606423,1.96694652,3310.8,3310.4,0.57717162]
[1720018606563,1.4436437,3310.8,3310.4,0.57717162]
[1720018606877,1.4436437,3310.8,3310.3,0.1177147]
[1720018608163,1.4436437,3310.7,3310.3,0.1177147]
[1720018608364,2.4794,3311.3,3310.3,0.1177147]
[1720018608704,1.44308599,3310.7,3310.3,0.1177147]
[1720018610302,0.52331614,3310.6,3310.3,0.1177147]
[1720018610506,1.44308599,3310.7,3310.3,0.1177147]
[1720018610705,0.52331741,3310.6,3310.3,0.1177147]
[1720018611001,1.44308599,3310.7,3310.3,0.1177147]
[1720018611206,1.9664034,3310.6,3310.3,0.1177147]
[1720018611396,1.44308599,3310.6,3310.3,0.1177147]
[1720018611906,1.44300263,3310.6,3310.3,0.1177147]
[1720018612300,1.44313312,3310.6,3310.3,0.1177147]
[1720018612601,0.52332062,3310.5,3310.3,0.1177147]
[1720018612822,1.44313312,3310.6,3310.3,0.1177147]
[1720018612986,0.52331678,3310.5,3310.3,0.64241617]
[1720018613184,1.44313312,3310.5,3310.3,0.64241617]
[1720018614196,0.52331786,3310.4,3310.3,0.64241617]
[1720018614432,1.44313312,3310.4,3310.3,0.64241617]
[1720018615136,1.44339582,3310.4,3310.3,0.64241617]
[1720018615317,1.96671394,3310.4,3310.3,0.64241617]
[1720018616288,0.52331812,3310.4,3310.3,0.64241617]
[1720018617602,0.52331812,3310.4,3310.3,3.06571617]
[1720018617803,0.52331812,3310.4,3310.3,4.18471617]
[1720018618156,7.32,3311.4,3310.3,4.18471617]
[1720018618426,2.72117254,3311.3,3311.1,1.119]
[1720018618626,2.72117254,3311.2,3311.1,1.119]
[1720018619923,0.52330264,3311.2,3311.1,1.119]
[1720018620930,7.32,3311.4,3311.1,1.119]
[1720018621088,0.52322592,3311.2,3310.8,2.3638]
[1720018621288,7.32,3311.4,3311.1,1.119]
[1720018621504,2.72081285,3311.3,3310.8,2.3638]
[1720018621708,7.32,3311.4,3311.2,1.119]
[1720018621909,2.72081297,3311.3,3311.2,1.119]
[1720018623044,2.72081297,3311.3,3310.8,2.3638]
[1720018623249,7.32,3311.4,3311.2,1.119]
[1720018623552,2.72083105,3311.3,3311.2,1.119]
[1720018623904,0.52325518,3311.3,3311.2,1.119]
[1720018624152,2.72092696,3311.3,3311.2,1.119]
[1720018624356,1.032,3311.4,3311.2,1.119]
[1720018624508,2.72093247,3311.3,3311.2,1.119]
[1720018625241,2.72093247,3311.3,3310.8,2.3638]
[1720018625415,2.72093247,3311.2,3311.1,1.119]
[1720018627152,2.72094327,3311.2,3311.1,1.119]
[1720018627365,3.0,3311.7,3310.8,2.3638]
[1720018627640,6.56046749,3311.6,3311.1,1.119]
[1720018627848,9.01744749,3311.5,3311.1,1.119]
[1720018628022,5.72093335,3311.4,3311.1,1.119]
[1720018628225,2.72093335,3311.3,3311.1,1.119]
[1720018628422,2.72093335,3311.2,3310.8,2.3638]
[1720018628624,2.72093335,3311.1,3310.8,2.60018]
[1720018628825,2.72093335,3311.0,3310.8,2.3638]
[1720018629046,0.52325641,3310.9,3310.8,2.3638]
[1720018629250,0.52325641,3310.9,3310.8,3.71918]
[1720018629834,2.72089421,3310.9,3310.8,2.60018]
[1720018630071,2.72089421,3310.9,3310.8,3.71918]
[1720018630438,2.7208595,3310.9,3310.8,3.71918]
[1720018630638,2.7208595,3310.9,3310.8,2.60018]
[1720018630846,2.7208595,3310.9,3310.8,3.71918]
[1720018631363,2.7208595,3310.9,3310.8,2.60018]
[1720018631560,2.7208595,3310.9,3310.8,3.71918]
[1720018633672,2.19763047,3310.9,3310.8,3.71918]
[1720018633867,0.5232396,3310.9,3310.8,3.71918]
[1720018634239,2.72087007,3310.9,3310.8,3.71918]
[1720018635270,1.44446181,3311.5,3311.3,6.20596]
[1720018635558,1.44446181,3311.8,3311.4,3.481385]
[1720018635743,1.44446181,3311.9,3311.7,1.119]
[1720018636071,1.44446181,3311.9,3311.8,1.119]
[1720018636274,7.32,3312.4,3311.8,1.119]
[1720018636275,1.44446181,3312.1,3311.8,1.119]
[1720018636434,7.32,3312.4,3312.0,1.119]
[1720018636631,7.32,3312.4,3312.3,1.119]
[1720018636833,3.0,3312.4,3312.3,1.119]
[1720018637033,2.4008,3312.5,3311.6,0.90058184]
[1720018637267,2.4008,3312.5,3312.3,1.119]
[1720018637575,2.4008,3312.5,3311.6,0.90058184]
[1720018637576,2.94088,3312.5,3311.6,0.90058184]
[1720018637776,3.0,3312.4,3311.6,0.90058184]
[1720018638074,2.4008,3312.5,3311.7,2.684]
[1720018644508,2.2881,3312.8,3311.7,2.684]
[1720018645072,0.52308477,3312.7,3311.7,2.684]
[1720018645413,0.52308477,3312.6,3311.8,0.35241994]
[1720018645593,0.52308477,3312.5,3311.8,0.4128024]
[1720018645792,3.0,3312.7,3311.9,2.2948]
[1720018646010,0.52307364,3312.6,3312.1,2.684]
[1720018646227,3.0,3312.7,3312.2,0.06037949]
[1720018646590,3.0,3312.9,3312.3,2.3755]
[1720018649690,3.0,3312.9,3312.1,2.684]
[1720018649691,4.032,3312.9,3312.1,2.684]
[1720018650034,4.032,3312.9,3311.6,3.186]
[1720018650035,9.477,3312.9,3311.6,2.2814]
[1720018650314,0.52307182,3312.8,3311.6,2.2814]
[1720018650485,1.523079,3312.7,3311.6,2.2814]
[1720018650692,0.52307182,3312.6,3311.6,2.2814]
[1720018651208,0.52307182,3312.6,3311.2,3.02005]
[1720018651209,2.3416,3312.5,3311.2,2.4956]
[1720018651501,0.52307182,3312.4,3311.3,2.684]
[1720018651732,0.52307182,3312.4,3311.3,0.51796]
[1720018651733,3.75723182,3312.4,3311.3,0.51796]
[1720018651919,0.52307182,3312.3,3311.3,0.51796]
[1720018652655,3.23416,3312.4,3311.3,0.51796]
[1720018652809,1.08073305,3312.3,3311.3,0.51796]
[1720018653007,0.52315705,3312.2,3311.3,0.51796]
[1720018653227,0.52315705,3312.1,3311.3,0.51796]
[1720018653508,0.52315705,3312.0,3311.3,0.51796]
[1720018653728,0.52315705,3312.2,3311.4,0.301356]
[1720018653921,0.52315834,3312.1,3311.4,0.301356]
[1720018654150,10.32,3312.4,3311.4,0.301356]
[1720018654309,0.52314457,3312.3,3311.4,0.301356]
[1720018654509,0.52314457,3312.2,3311.4,0.301356]
[1720018654820,7.32,3312.4,3311.5,2.684]
[1720018655011,0.52313845,3312.3,3311.5,2.9825356]
[1720018655327,0.52313845,3312.2,3311.5,2.9825356]
[1720018655507,7.32,3312.4,3311.5,2.9825356]
[1720018655717,0.52313026,3312.3,3311.6,0.32838916]
[1720018655911,7.32,3312.4,3311.6,0.32838916]
[1720018656141,0.52312455,3312.3,3311.6,0.32838916]
[1720018656444,0.52312455,3312.3,3311.7,2.48028601]
[1720018657523,0.52312455,3312.3,3311.7,2.4199]
[1720018658225,7.32,3312.4,3311.7,2.4199]
[1720018658641,0.52310824,3312.3,3311.7,2.4199]
[1720018658953,7.32,3312.4,3311.7,2.96312892]
[1720018659116,0.52310498,3312.2,3311.7,2.96312892]
[1720018659316,0.52310498,3312.2,3311.7,3.02351477]
[1720018660541,7.32,3312.4,3311.7,3.02351477]
[1720018660707,7.32,3312.4,3311.7,2.96312892]
[1720018662349,7.32,3312.4,3311.7,2.4199]
[1720018663755,2.3862,3312.3,3311.5,2.684]
[1720018663924,5.3862,3312.3,3311.1,2.2741]
[1720018664440,3.0,3312.1,3310.7,2.2741]
[1720018664763,2.4826,3311.9,3310.7,2.2741]
[1720018668354,0.52326072,3311.8,3310.7,2.2741]
[1720018668651,0.52326072,3311.7,3310.7,2.2741]
[1720018668863,0.52326072,3311.7,3310.8,0.5528559]
[1720018671242,0.52324018,3311.6,3310.8,0.5528559]
[1720018671449,3.0,3311.8,3310.8,0.5528559]
[1720018671761,0.52322866,3311.7,3311.0,2.684]
[1720018672065,3.0,3311.8,3311.0,2.684]
[1720018672222,0.5231909,3311.7,3311.0,2.684]
[1720018672423,7.32,3312.0,3311.1,0.29666956]
[1720018672424,3.0,3311.8,3311.1,0.29666956]
[1720018672649,0.52319486,3311.7,3311.1,0.29666956]
[1720018672936,3.0,3311.9,3311.1,0.29666956]
[1720018673141,0.52319587,3311.8,3311.1,0.29666956]
[1720018673378,0.52319587,3311.7,3311.1,0.29666956]
[1720018673679,3.0,3311.9,3311.1,0.29666956]
[1720018673843,0.52319479,3311.8,3311.2,0.29806696]
[1720018674043,0.52319479,3311.7,3311.2,0.29806696]
[1720018674349,3.0,3311.9,3311.2,0.29806696]
[1720018674699,0.52319179,3311.8,3311.2,0.29806696]
[1720018674844,0.52319179,3311.7,3311.2,0.29806696]
[1720018675045,0.52319179,3311.8,3311.2,0.29806696]
[1720018675342,0.52319691,3311.7,3311.2,0.29806696]
[1720018675551,0.52319753,3311.6,3311.0,2.684]
[1720018675755,3.0,3311.9,3311.0,2.684]
[1720018675982,2.4959,3311.7,3310.7,2.2741]
[1720018676280,0.52321782,3311.6,3310.8,0.49581]
[1720018678756,0.52324827,3311.5,3310.8,0.49581]
[1720018679085,0.52324827,3311.4,3310.8,0.49581]
[1720018679241,0.52324564,3311.3,3310.9,0.276991]
[1720018679582,0.52324564,3311.2,3310.9,0.276991]
[1720018679748,3.0,3311.9,3310.8,0.49581]
[1720018680085,0.68705072,3311.8,3311.1,2.4874]
[1720018680378,0.5232447,3311.7,3311.1,2.54779585]
[1720018680582,0.5232447,3311.6,3311.2,0.52317959]
[1720018680783,0.5232447,3311.5,3311.3,0.06039302]
[1720018680955,3.0,3311.9,3311.3,0.36749028]
[1720018681155,3.0,3311.9,3311.3,0.30709726]
[1720018681358,0.52318146,3311.8,3311.3,0.30709726]
[1720018681559,0.52318146,3311.7,3311.4,2.684]
[1720018681740,7.32,3312.0,3311.5,0.29910973]
[1720018682076,0.52314806,3311.9,3311.5,0.29910973]
[1720018682394,0.52314806,3311.8,3311.6,2.2671]
[1720018682543,7.32,3312.4,3311.7,0.25662097]
[1720018682744,0.68688908,3312.3,3311.7,0.25662097]
[1720018682951,0.52313539,3312.2,3311.7,0.25662097]
[1720018683164,0.52313539,3312.1,3311.7,0.25662097]
[1720018683476,0.52313539,3312.0,3311.7,0.25662097]
[1720018683645,0.52313539,3311.9,3311.7,0.25662097]
[1720018683985,3.0,3312.3,3311.8,0.31275858]
[1720018684143,0.52311022,3312.2,3311.8,0.31275858]
[1720018684483,3.0,3312.3,3311.8,0.31275858]
[1720018684689,0.52309186,3312.2,3311.8,0.31275858]
[1720018684841,3.0,3312.3,3311.8,0.31275858]
[1720018684842,0.52309186,3312.1,3311.8,0.31275858]
[1720018685041,0.52309186,3312.2,3311.8,0.31275858]
[1720018686656,0.52309186,3312.2,3311.6,2.2671]
[1720018687185,0.52309186,3312.2,3311.5,0.29910973]
[1720018687785,0.52313251,3312.1,3311.5,0.29910973]
[1720018688080,0.52313251,3312.0,3311.5,0.29910973]
[1720018688248,0.52313251,3312.2,3311.5,0.29910973]
[1720018689344,0.16361856,3312.1,3311.5,0.29910973]
[1720018689588,0.52313251,3312.0,3311.5,0.29910973]
[1720018689790,0.52313251,3312.0,3311.6,0.29831097]
[1720018689963,0.52313251,3312.2,3311.6,0.29831097]
[1720018690297,0.16362941,3312.1,3311.6,0.29831097]
[1720018690596,0.52313251,3312.0,3311.6,0.29831097]
[1720018690894,0.52313251,3312.2,3311.6,0.29831097]
[1720018691444,0.68677052,3312.1,3311.6,0.29831097]
[1720018691655,0.52314577,3312.1,3311.5,0.29910973]
[1720018691990,0.52314577,3312.0,3311.5,0.29910973]
[1720018692145,0.52314577,3311.9,3311.5,0.29910973]
[1720018692345,0.52314577,3311.8,3311.5,0.29910973]
[1720018692565,0.52314577,3312.2,3311.6,0.29831097]
[1720018692772,0.52314286,3312.1,3311.6,0.29831097]
[1720018693051,0.52314286,3312.0,3311.6,0.29831097]
[1720018693269,0.52314286,3311.9,3311.6,0.35869865]
[1720018693453,3.0,3312.3,3311.6,0.29831097]
[1720018693661,0.68677228,3312.2,3311.6,0.29831097]
[1720018693858,0.52313274,3312.1,3311.8,2.432]
[1720018694056,0.52313274,3312.0,3311.9,0.24923864]
[1720018694257,0.52311592,3312.0,3311.9,0.24923864]
[1720018695278,3.0,3312.3,3311.9,0.30962187]
[1720018695487,0.52308593,3312.2,3311.9,0.30962187]
[1720018695647,3.0,3312.6,3311.9,0.30962187]
[1720018695851,0.68675663,3312.5,3312.0,0.54256219]
[1720018696155,0.68675663,3312.4,3312.0,0.54256219]
[1720018696498,0.68675663,3312.3,3311.9,0.24923864]
[1720018696647,0.52308858,3312.2,3311.9,0.24923864]
[1720018696855,3.0,3312.6,3311.9,0.30961871]
[1720018697090,0.68674322,3312.5,3311.9,0.24923864]
[1720018697285,0.523044,3312.4,3311.9,0.24923864]
[1720018697486,3.0,3312.6,3312.0,0.53652386]
[1720018697653,0.68677221,3312.5,3312.0,0.53652386]
[1720018697846,0.52305204,3312.4,3312.0,0.53652386]
[1720018698052,0.52305204,3312.5,3312.0,0.53652386]
[1720018698265,0.52305204,3312.4,3312.0,0.53652386]
[1720018698590,0.52305204,3312.3,3312.0,0.53652386]
[1720018698801,3.0,3312.6,3312.0,0.53652386]
[1720018698963,0.52305097,3312.5,3312.0,0.53652386]
[1720018699163,0.52305097,3312.4,3312.0,0.53652386]
[1720018699373,3.0,3312.6,3312.0,0.53652386]
[1720018699673,0.52304047,3312.5,3312.0,0.53652386]
[1720018699885,0.52304047,3312.4,3312.0,0.53652386]
[1720018700083,3.0,3312.6,3312.0,0.53652386]
[1720018700269,0.52303885,3312.5,3312.0,0.53652386]
[1720018700469,0.52303885,3312.4,3312.0,0.53652386]
[1720018700795,3.0,3312.6,3312.0,0.53652386]
[1720018701005,0.52303426,3312.5,3312.1,0.06037758]
[1720018701290,3.0,3312.6,3312.1,0.06037758]
[1720018701499,0.52303222,3312.5,3312.1,0.06037758]
[1720018701713,7.32,3312.7,3312.1,0.06037758]
[1720018701988,7.32,3313.1,3312.2,5.154281]
[1720018702195,7.32,3313.1,3312.3,0.52146586]
[1720018702196,0.68674311,3313.0,3312.3,0.52146586]
[1720018702354,0.52297626,3312.9,3312.3,0.52146586]
[1720018702555,0.52297626,3313.0,3312.4,0.56757469]
[1720018703496,3.52297626,3313.0,3312.6,2.684]
[1720018703703,0.52297626,3312.9,3312.6,2.684]
[1720018703871,3.0,3313.0,3312.6,2.684]
[1720018704278,7.32,3313.1,3312.6,2.95843684]
[1720018704616,7.32,3313.1,3312.7,0.06036844]
[1720018704962,7.32,3313.1,3312.8,2.4139]
[1720018705292,7.32,3313.7,3312.9,0.06036361]
[1720018705503,0.52291265,3313.6,3313.0,2.684]
[1720018705809,0.52291265,3313.5,3313.0,2.684]
[1720018705999,7.32,3313.7,3313.0,2.684]
[1720018706297,0.52291327,3313.6,3313.0,2.684]
[1720018706485,0.52291327,3313.5,3312.8,2.4139]
[1720018707113,3.0,3313.6,3312.8,2.4139]
[1720018707323,0.52292851,3313.4,3312.8,2.4139]
[1720018707631,3.0,3313.6,3312.8,2.4139]
[1720018707794,0.52292661,3313.5,3312.8,2.4139]
[1720018707990,0.52292661,3313.4,3312.6,2.3986]
[1720018708335,3.52292661,3313.4,3312.6,2.3986]
[1720018708626,1.12064927,3313.3,3312.6,2.3986]
[1720018708791,0.52292661,3313.2,3312.6,2.3986]
[1720018710828,1.04595898,3313.1,3312.6,2.3986]
[1720018711339,0.52297949,3313.0,3312.6,2.3986]
[1720018711502,0.52297949,3313.1,3312.7,0.50826]
[1720018712040,0.52297949,3313.1,3312.8,0.06036841]
[1720018713737,0.52297949,3313.1,3312.7,0.50826]
[1720018716607,0.52297949,3313.1,3312.9,2.3575]
[1720018716936,0.52297949,3313.1,3313.0,0.06035949]
[1720018717138,0.52297949,3313.1,3313.0,0.57054544]
[1720018717823,3.0,3314.5,3313.1,2.3783]
[1720018717824,7.32,3314.4,3313.1,2.3783]
[1720018718028,0.68664351,3314.3,3313.3,2.684]
[1720018718336,0.52289564,3314.2,3313.3,2.684]
[1720018718520,3.01389564,3314.1,3313.1,2.3783]
[1720018718732,0.52289564,3314.0,3313.1,2.3783]
[1720018719038,0.52289564,3313.9,3313.1,2.3783]
[1720018719197,0.52289564,3313.8,3313.1,2.3783]
[1720018719397,0.52289564,3313.7,3313.1,2.9355486]
[1720018719605,10.32,3314.0,3313.1,2.9355486]
[1720018719809,0.52287853,3313.9,3313.1,2.9355486]
[1720018720029,0.5228798,3313.8,3313.1,2.9355486]
[1720018720226,3.0,3314.0,3313.1,2.9355486]
[1720018720500,0.52287946,3313.9,3313.1,2.9355486]
[1720018720695,2.491,3314.1,3313.1,2.9355486]
[1720018720696,0.52287946,3313.8,3313.1,2.9355486]
[1720018720895,0.52287946,3313.7,3313.1,2.9355486]
[1720018721136,3.0,3314.0,3313.1,2.9355486]
[1720018721318,0.52289083,3313.9,3313.1,2.9355486]
[1720018721502,0.52289083,3313.8,3313.1,2.9355486]
[1720018721698,3.0,3314.0,3313.1,2.9355486]
[1720018721699,0.52289083,3313.9,3313.1,2.9355486]
[1720018721922,0.52289083,3313.8,3313.1,2.9355486]
[1720018722129,0.52289083,3313.7,3313.1,2.9355486]
[1720018722329,0.52289083,3313.6,3313.1,2.3783]
[1720018722544,3.0,3314.0,3313.1,2.3783]
[1720018722545,0.52289083,3313.9,3313.1,2.3783]
[1720018722759,0.52290551,3313.8,3313.1,2.3783]
[1720018723058,0.52290551,3313.7,3313.1,2.3783]
[1720018723232,0.57401,3313.9,3313.1,2.3783]
[1720018723566,0.52290929,3313.8,3313.1,2.3783]
[1720018723731,0.52290929,3313.7,3313.1,2.3783]
[1720018724058,0.52290929,3313.6,3313.1,2.3783]
[1720018724357,0.52290929,3313.5,3313.1,2.3783]
[1720018724569,0.52290929,3313.7,3313.1,2.3783]
[1720018724725,0.52290929,3313.6,3313.1,2.3783]
[1720018724928,0.52290929,3313.5,3313.1,2.3783]
[1720018725125,0.52290929,3313.7,3313.1,2.3783]
[1720018726769,0.52291431,3313.6,3313.1,2.3783]
[1720018726940,0.52291431,3313.5,3313.1,2.3783]
[1720018727264,0.52291431,3313.4,3313.1,2.3783]
[1720018727469,0.52291431,3313.7,3313.1,2.3783]
[1720018727625,0.52291844,3313.6,3313.1,2.3783]
[1720018727830,0.52291844,3313.5,3313.1,2.3783]
[1720018728129,0.52291844,3313.4,3313.1,2.3783]